Cogmind - Beta 14 @@@ ROGUE MODE // 2024.09.18 @ 19:07:19 Player: Dull Result: Core destroyed Performance ------------- Evolutions (0) 0 Regions Visited (1) 200 Robots Destroyed (28) 140 Value Destroyed (651) 651 Prototype IDs (0) 0 Alien Tech Used (0) 0 Bonus (0) 0 TOTAL SCORE: 991 Bonus ------- None Cogmind --------- Core Integrity 0/250 Matter 264/300 Energy 100/100 System Corruption 22% Temperature Cool (0) Movement Core (1450) Ox28 Location -10/Materials Parts ------- > --- POWER (1) -------- (None) > --- PROPULSION (2) --- Light Treads Light Treads > --- UTILITY (2) ------ Huge Storage Unit Light Armor Plating > --- WEAPON (2) ------- Assault Rifle > --- INVENTORY (25) --- Ion Engine Ion Engine Ion Engine Light Ion Engine Wheel Heat Sink Improved Heat Sink Small Storage Unit Large Storage Unit Medium Matter Pod (100) Sensor Array Improved Terrain Scanner Hacking Suite Tractor Beam Recalibrator Medium Laser Medium Laser Medium Laser Assault Rifle Light Assault Rifle Grenade Launcher Grenade Launcher Mining Laser Peak State ------------ > --- POWER ------------ Light Ion Engine > --- PROPULSION ------- Light Treads Light Treads > --- UTILITY ---------- High-capacity Storage Unit Improved Terrain Scanner > --- WEAPON ----------- Assault Rifle Assault Rifle > --- INVENTORY -------- Ion Engine Ion Engine Light Ion Engine Wheel Heat Sink Improved Heat Sink Small Storage Unit Large Storage Unit Medium Matter Pod Recalibrator Medium Laser Medium Laser Medium Laser Assault Rifle Assault Rifle Light Assault Rifle Grenade Launcher Grenade Launcher [Rating: 11] Favorites ----------- Power Light Ion Engine Engine Light Ion Engine Propulsion Light Treads Treads Light Treads Leg Aluminum Leg Utility Light Armor Plating Device Improved Terrain Scanner Storage Huge Storage Unit Protection Light Armor Plating Weapon Assault Rifle Energy Gun Medium Laser Ballistic Gun Assault Rifle Build | -11 -10 ------- Run | Yrd Mat Slots Evolved . | . . Power . | . . Propulsion . | . . Utility . | . . Weapon . | . . Parts Attached 10 | 4 6 Power . | . . Engine . | . . Core . | . . Reactor . | . . Propulsion 2 | 2 . Treads 2 | 2 . Leg . | . . Wheel . | . . Hover . | . . Flight . | . . Utility 4 | 1 3 Device 1 | 1 . Storage 2 | . 2 Processor . | . . Hackware . | . . Protection 1 | . 1 Artifact . | . . Weapon 4 | 1 3 Energy Gun 1 | 1 . Energy Cannon . | . . Ballistic Gun 3 | . 3 Ballistic Cannon . | . . Launcher . | . . Special Weapon . | . . Impact Weapon . | . . Slashing Weapon . | . . Piercing Weapon . | . . Special Melee Weapon . | . . Unidentified Prototypes . | . . Parts Lost 3 | . 3 Power 1 | . 1 Propulsion . | . . Utility . | . . Weapon 2 | . 2 Highest Loss Streak 1 | . 1 To Critical Strikes . | . . Average Slot Usage (%) 96 | . 96 Engine 12 | . 12 Treads 28 | . 28 Device 5 | . 5 Storage 14 | . 14 Protection 8 | . 8 Ballistic Gun 26 | . 26 Peak Build Rating 11 | 9 11 Average Rating 9 | 6 9 On Entrance 7 | 6 9 Naked Turns . | . . Heaviest Build 90 | 13 90 Greatest Support 40 | 40 40 Greatest Overweight (x) 2 | . 2 Average Overweight (x) 1 | . 1 Largest Inventory Capacity 25 | 8 25 Average Capacity 22 | 8 22 Most Carried 24 | 6 24 Average Carried 17 | 2 17 Final Capacity 25 | 8 25 Final Carried 23 | 2 23 Class Distribution -------------------- 100% | Mutant Dominant Class ---------------- Mutant | -10/Materials Resources | -11 -10 ----------- Run | Yrd Mat Matter Collected 909 | 230 679 Remotely . | . . Salvage Created 1019 | 113 906 Parts 61 | 6 55 Haulers Intercepted 2 | . 2 Recyclers Shooed . | . . Parts Field Recycled . | . . Retrieved Matter . | . . Parts Self-Destructed . | . . Prevented . | . . Kills | -11 -10 ------- Run | Yrd Mat Combat Hostiles Destroyed 14 | . 14 Guns 14 | . 14 Classes Destroyed 9 | 2 7 Worker 2 | . 2 Builder 2 | . 2 Tunneler 2 | 2 . Hauler 2 | . 2 Recycler 1 | 1 . Mechanic 1 | . 1 Operator 1 | . 1 Watcher 3 | . 3 Grunt 14 | . 14 Best Kill Streak 4 | 2 4 Combat Bots Only 2 | . 2 Max Kills in Single Turn 2 | 2 2 Gunslinging . | . . Exploded . | . . Melee . | . . Uniques/NPCs Destroyed . | . . Combat | -11 -10 -------- Run | Yrd Mat Hostile Shots Fired 85 | . 85 Missed 27 | . 27 Damage Taken 883 | . 883 Core 253 | . 253 Absorbed by Shields . | . . Core Remaining (%) 100 | 100 . Volleys Fired 98 | 7 91 Largest 2 | 2 2 Hottest 100 | 100 40 Shots Fired 195 | 14 181 Gun 195 | 14 181 Cannon . | . . Launcher . | . . Special . | . . Kinetic 181 | . 181 Thermal 13 | 13 . Explosive . | . . Electromagnetic 1 | 1 . Robot Hit Streak 17 | 4 17 Robot Miss Streak 6 | 2 6 Penetration Max . | . . Secondary Targets 3 | . 3 Max Gunslinging Chain 1 | . 1 Shots Hit Robots 126 | 8 118 Core Hits 48 | 4 44 Critical Kills 2 | . 2 Critical Parts Destroyed . | . . Critical Strikes 2 | . 2 Destroy 2 | . 2 Melee Attacks . | . . Impact . | . . Slashing . | . . Piercing . | . . Sneak Attacks . | . . Combat Hostiles . | . . Follow-up Attacks . | . . Damage Inflicted 1842 | 109 1733 Guns 1749 | 109 1640 Cannons . | . . Explosions . | . . Melee . | . . Ramming 93 | . 93 Kinetic 1640 | . 1640 Thermal 109 | 109 . Explosive . | . . Electromagnetic . | . . Impact . | . . Slashing . | . . Piercing . | . . Highest Corruption 20 | . 20 Average Corruption 11 | . 11 Corruption Purged . | . . Corruption Blocked . | . . Effects 11 | . 11 Message Errors 2 | . 2 Matter Fused 4 | . 4 Heat Flow Errors 1 | . 1 Energy Discharges 2 | . 2 Data Loss (minor) 2 | . 2 Overload Shots . | . . Overflow Damage . | . . Projectiles . | . . Explosions . | . . Melee . | . . Knockbacks . | . . Impact . | . . Kinetic . | . . Secondary . | . . Self-Inflicted Damage 68 | . 68 Shots . | . . Rammed 5 | . 5 Targets Rammed 6 | . 6 Kicked . | . . Crushed 1 | . 1 Highest Temperature 156 | 156 96 Average Temperature 37 | 60 23 Received Heat Transfer 450 | . 450 Siege Activations . | . . Robots Corrupted . | . . Combat Hostiles . | . . Parts Fried . | . . Impact Corruptions . | . . Robots Melted . | . . Combat Hostiles . | . . Parts Melted . | . . Heat Transferred 333 | 333 . Parts Sabotaged . | . . Parts Stolen . | . . Parts Stripped . | . . Power Chain Reactions . | . . Alert | -11 -10 ------- Run | Yrd Mat Peak Influence 161 | 15 161 Initial 9 | . 9 Average 79 | 6 81 Maximum Alert Level . | . . Low Security (%) 100 | 100 100 Level 1 . | . . Level 2 . | . . Level 3 . | . . Level 4 . | . . Level 5 . | . . High Security . | . . Max Security . | . . Squads Dispatched 4 | . 4 Investigation 2 | . 2 Extermination . | . . Reinforcement 2 | . 2 Assault . | . . Garrison . | . . Intercept . | . . Searches Triggered . | . . Construction Impeded . | . . Haulers Reinforced . | . . Active Scanning Responses . | . . Cargo Convoy Interrupts . | . . Stealth | -11 -10 --------- Run | Yrd Mat Distress Signals 1 | . 1 Communications Jammed . | . . Distress Signals . | . . Times Spotted 38 | . 38 Peak Tracking Total 4 | . 4 Tactical Retreats 1 | . 1 Traps | -11 -10 ------- Run | Yrd Mat Traps Triggered . | . . Indirectly . | . . Trap Hack Attempts . | . . Triggered . | . . Disarmed 6 | . 6 Reprogrammed . | . . Reused . | . . Traps Extracted . | . . Installed . | . . Triggered . | . . Machines | -11 -10 ---------- Run | Yrd Mat Machines Disabled 2 | . 2 Max in Single Turn 1 | . 1 Machines Repaired . | . . Machines Dismantled . | . . Machines Sabotaged . | . . Overloaded Fab Kills . | . . Hacking | -11 -10 --------- Run | Yrd Mat Machines Accessed 9 | . 9 Terminals 7 | . 7 Fabricators . | . . Repair Stations . | . . Recycling Units 2 | . 2 Scanalyzers . | . . Garrison Access . | . . Total Hacks 32 | . 32 Successful 11 | . 11 Failed 21 | . 21 Catastrophic 2 | . 2 Database Lockouts . | . . Manual 31 | . 31 Terminals 24 | . 24 Fabricators . | . . Repair Stations . | . . Recycling Units 8 | . 8 Scanalyzers . | . . Garrison Access . | . . Terminal Hacks 3 | . 3 Robot Analysis 2 | . 2 Disarm Traps 1 | . 1 Fabricator Hacks . | . . Repair Station Hacks . | . . Recycling Unit Hacks . | . . Scanalyzer . | . . Garrison Access Hacks . | . . Unauthorized Hacks 8 | . 8 Terminals 5 | . 5 Botnet 5 | . 5 Fabricators . | . . Repair Stations . | . . Recycling Units 3 | . 3 Monitor 1 | . 1 Reject 1 | . 1 Mask 1 | . 1 Scanalyzers . | . . Garrison Access . | . . Data Cores Recovered . | . . Used . | . . Hacking Detections 8 | . 8 Full Trace Events 3 | . 3 Feedback Events . | . . Feedback Blocked . | . . Robot Schematics Acquired . | . . Robots Built . | . . Authchips . | . . Time . | . . Total Robot Build Rating . | . . Part Schematics Acquired . | . . Parts Built . | . . Authchips . | . . Time . | . . Total Part Build Rating . | . . Parts Repaired . | . . Time . | . . Parts Recycled . | . . Recycled Matter . | . . Retrieved Matter . | . . Retrieved Components . | . . Parts Scanalyzed . | . . Part Schematics Acquired . | . . Parts Damaged . | . . Bothacking | -11 -10 ------------ Run | Yrd Mat Used RIF Installer . | . . Robots Hacked . | . . Non-combat . | . . Combat . | . . Robot Hacks Applied . | . . Relay Couplers Released . | . . Fabnet Peak Effective % . | . . Robots Rewired . | . . Allies Hacked . | . . Hacks Repelled . | . . Allies | -11 -10 -------- Run | Yrd Mat Total Allies . | . . Largest Group . | . . Highest-Rated Group . | . . Highest-Rated Ally . | . . Total Orders . | . . Ally Attacks . | . . Total Damage . | . . Kills . | . . Allies Corrupted . | . . Allies Melted . | . . Intel | -11 -10 ------- Run | Yrd Mat Robot Analysis Total 2 | . 2 Derelict Logs Recovered . | . . Drone Launches . | . . Drone Recoveries . | . . Exploration | -11 -10 ------------- Run | Yrd Mat Turns Passed 3313 | 87 3226 Spaces Moved 942 | 39 903 Core . | . . Treads 935 | 32 903 Legs 7 | 7 . Wheels . | . . Hover . | . . Flight . | . . Fastest Speed 120 | 120 160 Average Speed 271 | 152 277 Slowest Speed 320 | 160 320 Overloaded Moves . | . . Propulsion Burnouts . | . . Robots Hopped . | . . Cave-ins Triggered . | . . Exploration Rate (%) 51 | 4 99 Regions Visited 1 Branch Regions . Pre-discovered Areas . | . . Known Exits Taken . | . . Unknown Exits Taken 1 | 1 . Scrap Searched . | . . Spaces Dug . | . . Terrain Destroyed 37 | . 37 Melee . | . . Projectile . | . . AOE 37 | . 37 Terrain Rammed 28 | . 28 Walls Destroyed . | . . Machines Disabled . | . . Actions | -11 -10 --------- Run | Yrd Mat Total 1176 | 53 1123 Wait 64 | . 64 Move 941 | 38 903 Hop . | . . Pick Up 22 | . 22 Fast Attach 3 | 1 2 Attach 1 | . 1 Detach . | . . Swap 6 | 3 3 Drop 8 | 4 4 Fire 98 | 7 91 Melee . | . . Ram 27 | . 27 Kick . | . . Crush 6 | . 6 Escape Stasis . | . . Rewire . | . . Trap . | . . Miscellaneous . | . . Route ------- -11/Scrapyard -10/Materials (discovered 5 exits: [*Mat x3] / [*Min x2]) History --------- Turn | Location | Event 1 | -11/Scrapyard | Discovered new exit (range 3) 88 | -11/Scrapyard | Entered Materials 317 | -10/Materials | Build established: Mutant 515 | -10/Materials | Discovered new exit (range 15) 721 | -10/Materials | Discovered new exit (range 3) 1118 | -10/Materials | Discovered new exit (range 16) 1499 | -10/Materials | Discovered new exit (range 15) 2217 | -10/Materials | Discovered new exit (range 4) 2897 | -10/Materials | Core integrity fell below 50% 3083 | -10/Materials | Core integrity fell below 20% 3141 | -10/Materials | System corruption reached 10% 3314 | -10/Materials | Core destroyed Last Messages --------------- 03212_ Destabilizing: Core damaged (-12). 03212_ Destabilizing: Core damaged (-10). 03225_ System corrupted: Matter fused (-8). 03227_ Slammed into Wall. 03227_ Destabilizing: Core damaged (-5). 03227_ Destabilizing: Core damaged (-7). 03241_ Slammed into Wall. 03248_ System corrupted: Heat flow error (+118). 03256_ Slammed into Wall. 03270_ Destabilizing: System corrupted (+2). 03273_ >YUSD65LLTHR4,HBRUHSE 03285_ Slammed into Wall. 03285_ Destabilizing: System corrupted (+1). 03296_ System corrupted: Matter fused (-7). 03299_ Slammed into Wall. 03299_ Destabilizing: System corrupted (+1). 03311_ System corrupted: Matter fused (-5). 03314_ Slammed into Wall. 03314_ Destabilizing: System corrupted (+2). 03314_ Destabilizing: Core damaged (-5). Map ----- +----------------------------------------------------+ | ???????????????????????????????# """ #?????? | | ???????????????????????????????# """"" #?????? | | ???????????????????????????????# """"" #?????? | | ???????????????????????????????# """"" #?????? | | ???????????????????????????????# """ #?????? | | ???????????????????????????????# #?????? | | ????????????#########??##############+############ | | ????????????# #??# # """ """ | | ????????????# < #??# # """ """ | | ????????????# #??# # """ """ | | ??????########### #??# ###+#######%! # | | ??????# = [% # #??# # #??# # | | ??????# "T" """ # #??# # #??# # | | ??????# *[""" + #??# # """ #??# #####+### | | ??????# """ # #??# # """ #??# | | ??????# ! # #??# # """ #### | | ??????# =!# #??# # + " | | ??????# # #??# ############+#####!= " | | ??????# = # #??# #??????# #!= " | | ??############### #??# #??????# #!= | | ??# !!! + #### #??????# # | | ??# !!! # #??????# #% | | ??# ! """ # #?????############ %## | | ??# """ # ####??#????# ## ## | | ??# "T" """ ############ ##??????# ## % ## | | ??# #?????###@# ###????# ## ## | | ??###############?????##uu #????# ## =## | | ?????????????########### ##????# ## ! ## | | ?????????????# ## # ###??# ## [## | | ?????????????# """"" ## # #?#??# ## ## | | ?????#???????# """"" ## # ##?#??# ## ## | | ?????????????# """"" ## ######### ## ## | | ?????????????# """"" ######+## = ##+#### ## | | ?????????????# """"" ## !%! ! | | ??????#???#??# """"" #### <= [[[ | | ???????#??#??# """"" #### ! = | | ?????????????# #??# !%## ##+######### | | ???????#?????#####+#######! [## "|" # ## = | | ????#??????????# * ##""|"|""# """## | | ?????????#?????# ########## """## | | ???????????#???# # # """## | | ???????????##### #### # """ # ## | | ???????????# #?## # "T" # ## | | ???????????# #??# %+ ######### | | ???????????# #### # ##??????# | | ??????#????# #??# # #???????# | | ???????#???# ### #?## ###+######???????# | | ?#??######## #?# #??# ### ##?#????##??## | | ????# # #?# #??# ###########?# | | ????# # ##+###+#??# ##?#### | +----------------------------------------------------+ Best States ------------- Heat Dissipation 25 Energy Generation 10 Energy Capacity 125 Matter Stores 300 Matter Capacity 300 Sight Range 16 Terrain Scan Range 16 Terrain Scan Density 10 Armor Coverage 150 Evasion (%) 45 Recoil Reduction 2 Item Schematics ----------------- None Robot Schematics ------------------ None Fabricated ------------ Nothing Alien Tech Used ----------------- None Achievements -------------- None Challenges ------------ None Game ------ Seed HypervelocityOmegaPendant Manual? 0 Play Time 00:12:30 Cumulative 112.3 hours Start 2024.09.18 @ 18:56:01 End 2024.09.18 @ 19:07:19 Sessions 1 Manual Loads 0 Difficulty Rogue Special Mode None Game No. 159 Rogue 159 Adventurer 0 Explorer 0 Win Type - Total 1 Types 1/0/0/0/0/0/0/0/0 Lore% 26 Gallery% 57 Achievement% 45 Wizard Run 0 Options --------- Layout 0 ASCII 0 Keyboard 0 Movement Mouse Keybinds 1 Fullscreen 1 Font 18/TerminusBold Map View 76x50 Zoom Use 0% Tactical HUD 1 Map Filters NONE Filters NONE Steam 1 RUN: c4c29485-34b3-4955-90b5-104ad893c32f